bitfinex/quotes_ETHUSD_20250331
["timestamp","ask_amount","ask_price","bid_price","bid_amount"]
[1743412229069,3.0,1790.9,1790.5,0.10615003]
[1743412229070,8.58394,1790.9,1790.5,0.10615003]
[1743412229275,6.871,1790.8,1790.5,0.10615003]
[1743412229474,10.29869672,1791.3,1790.8,5.58398]
[1743412229475,6.35103,1791.3,1790.8,5.58398]
[1743412229778,5.58286,1791.2,1790.8,11.16795]
[1743412230103,8.58262,1791.3,1790.9,5.5835]
[1743412230277,5.5829,1791.2,1790.8,5.58406]
[1743412230481,5.5829,1791.2,1790.5,0.85855003]
[1743412230482,5.58339,1791.1,1790.5,0.85855003]
[1743412230709,5.58318,1791.1,1790.5,0.85855003]
[1743412231009,5.58422,1790.8,1790.5,0.10615003]
[1743412231410,5.58381,1790.9,1790.5,0.10615003]
[1743412231705,1.416552,1791.2,1790.5,0.10615003]
[1743412231908,5.58209,1791.5,1791.0,5.58325]
[1743412232074,6.140439,1791.4,1791.0,5.58325]
[1743412232280,5.58262,1791.3,1791.1,0.24208879]
[1743412232579,6.140539,1791.4,1791.2,0.24214413]
[1743412232774,6.35013,1791.7,1791.3,5.58234]
[1743412232981,10.89666672,1791.9,1791.4,0.24208879]
[1743412232982,11.16239,1791.8,1791.4,0.24208879]
[1743412233208,5.5813,1791.7,1791.4,0.24208879]
[1743412233617,5.58117,1791.8,1791.4,5.82426879]
[1743412233892,6.949,1791.9,1791.4,0.24208879]
[1743412234092,6.37411,1791.5,1791.4,0.24208879]
[1743412234293,5.58349,1791.0,1790.6,6.4041]
[1743412234609,7.011,1791.2,1790.9,5.58366]
[1743412234976,3.0,1791.3,1790.9,5.58366]
[1743412235310,3.0,1791.3,1791.2,5.58284]
[1743412236002,0.65286287,1791.4,1791.3,5.58253]
[1743412236398,0.65286287,1791.4,1791.3,5.7568346]
[1743412236789,0.65286287,1791.4,1791.3,0.1743046]
[1743412237108,0.65286287,1791.4,1791.3,5.7568346]
[1743412237407,0.65286287,1791.4,1791.3,6.3068346]
[1743412237706,1.00505575,1791.4,1791.3,6.3068346]
[1743412239206,0.65286287,1791.8,1791.6,5.58147]
[1743412239406,0.65286287,1791.8,1791.7,6.40579]
[1743412239610,0.65286287,1792.0,1791.7,0.17182643]
[1743412239795,5.58098,1791.8,1791.4,11.98863]
[1743412239996,6.697161,1791.8,1791.5,5.58188]
[1743412240205,1.116181,1791.8,1791.6,5.58151]
[1743412240513,6.23325287,1792.0,1791.6,5.58151]
[1743412240514,0.65286287,1792.0,1791.6,5.58146]
[1743412240706,0.65286287,1792.0,1791.7,5.58116]
[1743412240900,0.65286287,1792.0,1791.7,5.58112]
[1743412241127,5.57945,1792.3,1791.9,5.58066]
[1743412241303,3.94766672,1792.4,1791.7,11.16237]
[1743412241304,5.58017,1792.1,1791.7,11.16237]
[1743412241483,5.58017,1792.1,1791.7,5.58114]
[1743412241811,5.57999,1792.2,1791.8,5.58096]
[1743412241994,5.58005,1792.1,1791.8,5.58096]
[1743412242307,11.16026,1792.1,1791.7,5.58123]
[1743412242509,6.137769,1792.2,1791.8,5.58092]
[1743412242712,0.7756,1791.7,1790.8,6.37583]
[1743412242913,5.58195,1791.5,1791.1,5.58308]
[1743412243088,5.58205,1791.5,1790.8,6.37587]
[1743412243297,5.58205,1791.5,1791.0,5.5833]
[1743412243298,5.58236,1791.4,1791.0,5.5833]
[1743412243501,11.16482,1791.4,1791.0,5.5833]
[1743412243701,5.58285,1791.2,1790.8,11.95989]
[1743412243898,6.698742,1791.4,1791.0,5.58336]
[1743412244421,0.64861847,1791.1,1790.9,5.58368]
[1743412244587,0.64861847,1791.1,1791.0,5.58347]
[1743412244787,0.64861847,1791.1,1790.9,11.16728]
[1743412244988,5.58225,1791.4,1791.0,5.58347]
[1743412245316,11.16469,1791.4,1791.0,5.58335]
[1743412245629,1.116469,1791.4,1790.9,5.58372]
[1743412245923,5.58336,1791.1,1790.7,11.16851]
[1743412246420,11.16457,1791.4,1791.0,5.58341]
[1743412246719,5.58297,1791.2,1790.8,11.16805]
[1743412246924,5.5828,1791.3,1790.9,5.58366]
[1743412247215,5.5828,1791.3,1791.0,5.58344]
[1743412247216,5.58276,1791.3,1791.0,5.58344]
[1743412247393,5.58263,1791.3,1790.9,11.1674]
[1743412247715,5.58303,1791.2,1790.8,11.16799]
[1743412247925,6.699037,1791.3,1790.9,5.58367]
[1743412248119,1.116487,1791.3,1791.0,5.58335]
[1743412248291,5.58279,1791.3,1790.9,5.58363]
[1743412248493,5.58223,1791.4,1791.0,5.58347]
[1743412248997,5.58223,1791.4,1791.1,5.58312]
[1743412249192,15.73794,1791.5,1791.2,0.12466765]
[1743412249412,15.73802,1791.5,1790.9,0.8111]
[1743412249720,16.296133,1791.5,1791.3,0.12466765]
[1743412249894,3.7685,1791.1,1790.5,0.10615003]
[1743412250082,11.1693,1790.7,1790.5,0.10615003]
[1743412250287,8.58418,1790.8,1790.5,0.10615003]
[1743412250485,12.89651,1791.0,1790.5,5.69115003]
[1743412250741,12.89651,1791.0,1790.7,5.58439]
[1743412251024,9.3517,1791.1,1790.7,11.16849]
[1743412251320,11.575358,1791.1,1790.7,5.58424]
[1743412251830,5.58358,1791.0,1790.6,11.16928]
[1743412251989,5.58397,1790.9,1790.6,5.58471]
[1743412252329,0.93857944,1791.0,1790.8,5.58391]
[1743412252740,0.93857944,1791.0,1790.9,5.58378]
[1743412254013,0.36078064,1791.0,1790.9,5.58378]
[1743412254426,0.36078064,1791.0,1790.8,5.58391]
[1743412254632,6.33792,1790.6,1790.5,0.10615003]
[1743412254828,9.971712,1790.6,1790.5,0.10615003]
[1743412255348,14.38332413,1790.6,1790.1,0.1]
[1743412255498,5.58815,1789.5,1789.4,0.005]
[1743412255692,0.7882,1790.2,1789.4,0.8177]
[1743412255906,3.7882,1790.2,1789.8,5.58712]
[1743412256209,3.7882,1790.2,1789.4,0.8177]
[1743412256210,5.58734,1789.8,1789.4,0.005]
[1743412256400,7.421,1789.8,1789.4,5.59325]
[1743412256596,0.7678,1789.9,1789.4,0.005]
[1743412256920,5.58733,1789.8,1789.4,0.7993]
[1743412257227,5.58733,1789.8,1789.4,6.38765]
[1743412257430,5.58772,1789.7,1789.4,0.005]
[1743412258530,0.36078064,1789.6,1789.4,0.005]
[1743412258736,0.36078064,1789.6,1789.4,5.59326]
[1743412259229,0.36078064,1789.6,1789.5,6.90395]
[1743412260337,5.58582,1790.3,1789.8,5.58699]
[1743412260541,0.558582,1790.2,1789.8,5.58699]
[1743412260842,5.58673,1790.0,1789.6,5.58767]
[1743412261051,5.58673,1790.0,1789.5,5.58813]
[1743412261202,5.58815,1789.5,1789.4,0.005]
[1743412261731,7.452,1789.6,1789.4,0.005]
[1743412262030,13.03986,1789.6,1789.4,0.005]
[1743412262532,9.20756186,1789.6,1789.4,0.005]
[1743412262718,7.449,1789.7,1789.4,0.005]
[1743412262903,5.58796,1789.6,1789.4,0.005]
[1743412263099,3.0,1789.5,1789.4,0.005]
[1743412263406,13.30451672,1789.5,1789.4,0.005]
[1743412263627,20.79351672,1789.5,1789.4,0.005]
[1743412263836,23.43166439,1789.5,1789.4,0.005]
[1743412264414,19.48799767,1789.5,1789.4,0.005]
[1743412264614,16.84985,1789.5,1789.4,0.005]
[1743412264911,9.42239,1789.2,1789.1,0.1]
[1743412265117,13.37005672,1789.2,1789.1,0.1]
[1743412265712,9.42239,1789.2,1789.1,0.1]
[1743412266443,3.0,1789.3,1789.1,1e-05]
[1743412266653,8.58884,1789.3,1789.1,1e-05]
[1743412266814,3.94766672,1789.6,1789.1,1e-05]
[1743412267013,6.13,1790.4,1789.1,1e-05]
[1743412267014,5.58676,1790.0,1789.6,5.58767]
[1743412267241,5.58676,1790.0,1789.1,1e-05]
[1743412267242,17.93768672,1790.1,1789.1,0.55001]
[1743412267461,5.58665,1790.0,1789.5,5.58813]
[1743412267632,5.58694,1789.9,1789.5,5.58813]
[1743412267836,1.117359,1789.9,1789.5,11.17608]
[1743412268050,6.704259,1789.9,1789.5,5.58795]
[1743412268221,12.33836672,1790.1,1789.7,5.58744]
[1743412268421,17.92481672,1790.1,1789.7,5.58744]
[1743412268655,4.77736672,1790.1,1789.8,5.58698]
[1743412268855,6.37764,1790.3,1789.9,5.58679]
[1743412269055,0.7919,1790.3,1790.0,5.58641]
[1743412269270,5.58555,1790.4,1790.0,5.58641]
[1743412269474,5.58589,1790.3,1789.8,5.58703]
[1743412269766,5.58589,1790.3,1789.8,11.17406]
[1743412269767,5.58588,1790.3,1789.8,11.17406]
[1743412269970,5.58565,1790.3,1789.5,0.7843]
[1743412270126,5.58616,1790.2,1789.7,5.58729]
[1743412270325,5.58616,1790.2,1789.8,5.5871]
[1743412270326,13.044321,1790.2,1789.8,5.5871]
[1743412270546,1.871981,1790.2,1789.5,0.7843]
[1743412270759,7.548,1790.3,1790.0,5.58632]
[1743412271053,5.58636,1790.1,1789.6,5.58756]
[1743412271270,8.58604,1790.2,1789.5,6.37236]
[1743412271455,8.58604,1790.2,1789.6,5.5876]
[1743412271456,5.58638,1790.1,1789.6,5.5876]
[1743412271756,5.58628,1790.1,1789.7,5.5874]
[1743412272156,10.554,1790.3,1790.0,5.58648]
[1743412272349,7.554,1790.3,1790.1,5.58611]
[1743412272533,7.554,1790.3,1790.1,5.58624]
[1743412273335,7.554,1790.3,1790.0,5.58655]
[1743412273548,5.58535,1790.4,1790.0,11.173]
[1743412273861,7.275685,1790.4,1790.0,5.58645]
[1743412274566,7.275685,1790.4,1790.0,5.58642]
[1743412274862,7.275685,1790.4,1790.0,11.17288]
[1743412275262,1.690335,1790.4,1790.1,5.58604]
[1743412275640,3.633792,1790.6,1790.0,0.8245]
[1743412275641,0.633792,1790.6,1790.0,0.8245]
[1743412275841,8.3112,1790.8,1790.5,5.58503]
[1743412276046,0.8262,1790.8,1790.5,5.58485]
[1743412276342,3.94766672,1791.0,1790.7,5.58426]
[1743412276663,7.484,1791.2,1790.9,5.5836]
[1743412276833,9.53031672,1791.3,1791.0,5.58342]
[1743412277176,13.06177,1791.6,1791.1,5.58293]
[1743412277376,13.06177,1791.6,1791.2,5.58283]
[1743412277377,7.48,1791.6,1791.2,5.58283]
[1743412277665,13.06172,1791.6,1791.2,5.58271]
[1743412277863,13.06172,1791.6,1791.2,5.5827]
[1743412278166,15.91566672,1791.7,1791.3,5.58253]
[1743412278333,1.59156667,1791.6,1791.4,5.58221]
[1743412278532,0.1,1791.9,1791.5,5.58191]
[1743412278729,5.68077,1791.9,1791.5,5.58191]
[1743412278934,0.1,1791.9,1791.6,5.58158]
[1743412279133,0.1,1791.9,1791.6,5.58141]
[1743412279361,0.1,1791.9,1791.7,5.58124]
[1743412279668,0.58773667,1791.9,1791.6,5.58141]
[1743412279966,0.58773667,1791.9,1791.8,5.58098]
[1743412280135,0.1,1791.9,1791.8,5.58098]
[1743412281265,0.1,1791.9,1791.8,6.36318]
[1743412282659,0.1,1791.9,1791.8,6.91318]
[1743412285655,9.52553672,1792.8,1792.4,5.57891]
[1743412285961,11.15594,1792.8,1792.4,5.57891]
[1743412286301,1.115594,1792.7,1792.4,5.57891]
[1743412286459,11.15597,1792.8,1792.4,5.57891]
[1743412286655,5.57925,1792.4,1792.0,5.58007]
[1743412286867,5.57925,1792.4,1792.0,11.16031]
[1743412287055,5.57887,1792.5,1792.0,5.58007]
[1743412287377,5.57869,1792.6,1792.2,5.57961]
[1743412287546,0.557869,1792.5,1792.2,5.57961]
[1743412287751,5.57852,1792.6,1791.9,6.13064]
[1743412287951,11.15724,1792.6,1792.2,5.57967]
[1743412288153,5.57852,1792.6,1792.2,11.15934]
[1743412288352,5.57852,1792.6,1792.2,5.57967]
[1743412288878,0.8292,1792.6,1791.9,5.58051]
[1743412289066,5.57919,1792.4,1791.9,5.58049]
[1743412289267,5.57919,1792.4,1791.8,0.7822]
[1743412289268,5.57998,1792.2,1791.8,0.7822]
[1743412289467,11.15991,1792.2,1791.8,6.363]
[1743412289671,9.137449,1792.3,1791.9,5.58054]
[1743412290391,3.557919,1792.3,1792.0,5.58021]
[1743412290563,3.557919,1792.3,1791.8,0.7822]
[1743412290762,0.3557919,1792.2,1791.8,6.36317]
[1743412290958,5.9356619,1792.2,1791.8,6.36306]
[1743412291167,0.3557919,1792.2,1791.9,5.5806]
[1743412291390,0.3557919,1792.2,1791.9,11.16108]
[1743412291595,0.3557919,1792.2,1792.0,11.16032]
[1743412291792,0.557919,1792.3,1792.0,5.58008]
[1743412291965,6.137389,1792.3,1791.9,5.58063]
[1743412292297,6.137389,1792.3,1792.0,5.58035]
[1743412292814,5.57974,1792.2,1791.9,5.58063]
[1743412293024,0.8289,1792.7,1791.8,15.2822]
[1743412293296,5.57937,1792.4,1791.9,5.58049]
[1743412293502,5.57989,1792.2,1791.8,6.36312]
[1743412293712,5.57989,1792.2,1791.8,11.94396]
[1743412293713,0.557989,1792.1,1791.8,11.94396]
[1743412293994,0.557989,1792.1,1791.8,6.36308]
[1743412294199,0.557989,1792.1,1792.0,5.58035]
[1743412294372,0.7744,1792.3,1792.0,5.5803]
[1743412294579,0.7744,1792.3,1792.0,5.58018]
[1743412294793,0.7744,1792.3,1792.0,11.1604]
[1743412295000,0.7744,1792.3,1792.0,11.16042]
[1743412295315,5.57922,1792.4,1792.1,5.58002]
[1743412295594,0.557922,1792.3,1792.1,5.58002]
[1743412295978,0.557922,1792.3,1792.2,5.57973]
[1743412296172,6.40991,1792.5,1792.1,11.15982]
[1743412296378,9.40991,1792.5,1792.2,5.57953]
[1743412296571,7.312,1792.6,1792.2,5.57953]
[1743412296788,5.57889,1792.5,1792.1,11.15996]
[1743412296988,5.57854,1792.6,1792.2,5.57957]
[1743412297298,6.136714,1792.5,1792.2,5.57957]
[1743412297470,0.557854,1792.5,1792.3,5.5794]
[1743412297679,0.557854,1792.5,1792.3,5.57929]
[1743412298174,0.557854,1792.5,1792.3,11.15857]
[1743412298373,11.97738,1792.7,1792.3,5.57928]
[1743412298918,5.57855,1792.6,1792.3,11.15854]
[1743412299222,11.17666672,1792.8,1792.5,5.57864]
[1743412299223,5.57791,1792.8,1792.5,5.57864]
[1743412299374,18.47936,1792.9,1792.5,5.57864]
[1743412299569,5.57796,1792.8,1792.5,5.57864]
[1743412299782,1.847956,1792.8,1792.1,0.55]
[1743412299980,3.0,1792.6,1792.0,6.40338]
[1743412300276,5.57911,1792.4,1792.1,5.57998]
[1743412300475,5.57911,1792.4,1792.1,5.57989]
[1743412300876,11.1581,1792.5,1792.1,5.57989]
[1743412301109,5.57917,1792.4,1792.1,5.57989]
[1743412301400,0.557917,1792.3,1792.0,11.98368]
[1743412301578,0.557917,1792.3,1792.0,11.9836]
[1743412301786,0.557917,1792.3,1792.0,6.4034]
[1743412301983,1.389017,1792.3,1791.8,5.58088]
[1743412302188,6.968537,1792.3,1791.9,11.16109]
[1743412302394,0.6968537,1792.2,1791.9,5.58052]
[1743412302702,6.2765837,1792.2,1791.9,5.58052]
[1743412302905,0.6968537,1792.2,1792.0,5.58031]
[1743412303083,0.6968537,1792.2,1792.0,11.16045]
[1743412303286,0.557917,1792.3,1792.0,5.5802]
[1743412303599,11.717077,1792.3,1791.9,11.16116]
[1743412303898,6.137387,1792.3,1792.0,5.58031]
[1743412304400,11.716967,1792.3,1791.9,5.58055]
[1743412304609,6.7514667,1792.2,1791.9,5.58052]
[1743412304805,6.7514667,1792.2,1791.7,14.5]
[1743412304806,5.58098,1791.8,1791.7,14.5]
[1743412305013,1.1716967,1792.2,1791.4,6.39479]
[1743412305178,3.7574,1792.3,1791.7,5.58126]
[1743412305382,5.58019,1792.1,1791.7,5.58112]
[1743412305576,5.58019,1792.1,1791.7,11.16224]
[1743412305898,0.7574,1792.3,1792.1,5.5799]
[1743412306092,6.33696,1792.3,1791.9,5.58043]
[1743412306306,0.3480286,1792.0,1791.8,5.58094]
[1743412306676,0.3480286,1792.0,1791.8,11.16177]
[1743412306876,0.3480286,1792.0,1791.9,5.58066]
[1743412307678,0.3480286,1792.0,1791.8,5.58083]
[1743412307883,0.3480286,1792.0,1791.8,11.16171]
[1743412308099,0.3480286,1792.0,1791.9,5.58066]
[1743412308473,0.3480286,1792.0,1791.8,5.58083]
[1743412308982,0.94085546,1792.0,1791.9,5.58066]
[1743412309183,0.3480286,1792.0,1791.9,5.58066]
[1743412309597,5.57977,1792.2,1791.9,5.58066]
[1743412309797,6.33683,1792.3,1792.0,5.58025]
[1743412310089,0.7596,1792.5,1792.0,5.58035]
[1743412310319,12.71266,1792.6,1792.2,5.57959]
[1743412310623,12.71266,1792.6,1792.0,5.58025]
[1743412310624,1.271266,1792.5,1792.0,5.58025]
[1743412310829,6.850236,1792.5,1792.0,5.58035]
[1743412310992,0.34931909,1792.4,1792.1,5.57989]
[1743412311186,0.34931909,1792.4,1792.2,5.57972]
[1743412311525,0.34931909,1792.4,1792.1,5.57989]
[1743412311688,1.6271706,1792.4,1792.2,5.57969]
[1743412311884,0.34931909,1792.4,1792.1,5.57989]
[1743412312078,5.57947,1792.3,1792.0,5.58024]
[1743412312283,5.92852909,1792.4,1792.0,5.5802]
[1743412312699,5.57942,1792.3,1792.0,11.16042]
[1743412312930,0.34931909,1792.3,1791.9,0.7897]
[1743412313107,0.942164,1792.3,1792.1,5.58002]
[1743412313301,0.942164,1792.3,1792.0,5.58024]
[1743412313530,6.521674,1792.3,1792.0,11.16044]
[1743412313697,0.942164,1792.3,1792.1,5.57997]
[1743412314213,0.34931909,1792.2,1792.0,5.5802]
[1743412314414,0.34931909,1792.2,1791.9,11.95087]
[1743412314602,5.92918909,1792.2,1791.8,11.1618]
[1743412314802,1.55946749,1792.2,1791.9,5.58057]
[1743412315014,7.13919749,1792.2,1791.9,5.58057]
[1743412315526,1.55946749,1792.2,1791.9,5.58052]
[1743412315725,1.55946749,1792.2,1791.9,11.16108]
[1743412316030,0.34931909,1792.1,1791.9,11.16104]
[1743412316351,0.34931909,1792.1,1791.9,5.58052]
[1743412316699,0.34931909,1792.1,1791.9,11.16108]
[1743412316895,0.34931909,1792.1,1791.9,5.58052]
[1743412317234,5.92940909,1792.1,1791.8,5.58084]
[1743412317439,0.34931909,1792.0,1791.9,5.58066]
[1743412320047,0.34931909,1792.0,1791.9,6.1864646]
[1743412320248,0.34931909,1792.0,1791.9,6.13066]
[1743412321901,0.34931909,1792.0,1791.9,7.01915636]
[1743412322114,0.34931909,1792.0,1791.9,6.96336]
[1743412322807,0.34931909,1792.0,1791.9,0.8327]
[1743412323006,0.34931909,1792.0,1791.8,11.16172]
[1743412323224,0.34931909,1792.0,1791.9,5.58066]
[1743412325138,9.09e-06,1792.0,1791.9,6.90766]
[1743412325711,9.09e-06,1792.0,1791.9,13.83166]
[1743412326844,5.57894,1792.5,1792.1,5.58]
[1743412327136,5.57911,1792.4,1792.1,11.15982]
[1743412327441,11.15795,1792.5,1792.1,11.15982]
[1743412327743,5.57967,1792.3,1791.9,6.35756]
[1743412327953,5.57967,1792.3,1791.9,6.35751]
[1743412328235,5.57967,1792.3,1792.0,5.58029]
[1743412328411,0.776,1792.4,1792.2,5.57972]
[1743412328614,0.776,1792.4,1792.1,11.15986]
[1743412328939,0.776,1792.4,1792.1,11.15981]
[1743412329145,7.548515,1792.4,1792.0,5.58026]
[1743412329438,11.1591,1792.3,1792.0,5.58026]
[1743412329612,5.57952,1792.3,1792.0,5.58026]
[1743412329813,1.969395,1792.4,1792.1,5.57989]
[1743412330014,1.969395,1792.4,1792.2,5.57952]
[1743412330207,0.776,1792.4,1792.2,5.57952]
[1743412330710,11.93461,1792.4,1792.0,5.58022]
[1743412330911,5.57969,1792.3,1791.9,6.35756]
[1743412331149,5.57984,1792.2,1791.9,11.16107]
[1743412331347,11.15933,1792.3,1791.9,11.16107]
[1743412331515,12.352863,1792.3,1791.9,11.16107]
[1743412331848,6.773133,1792.3,1791.9,11.16107]
[1743412332148,6.35516,1792.4,1792.0,5.58025]
[1743412332447,5.57944,1792.3,1792.0,5.58023]
[1743412332644,5.57882,1792.5,1792.1,5.5799]
[1743412332850,5.57882,1792.5,1792.2,5.57972]
[1743412333047,14.9595,1792.6,1792.2,5.57973]
[1743412333350,5.57786,1792.8,1792.6,5.57832]
[1743412333351,0.7626,1792.8,1792.6,5.57832]
[1743412333952,0.7626,1792.8,1792.5,5.57878]
[1743412334127,6.34049,1792.8,1792.4,11.15808]
[1743412334448,11.9186,1792.8,1792.4,5.57896]
[1743412334645,11.9186,1792.8,1792.4,11.15797]
[1743412334850,5.57868,1792.6,1792.2,5.57961]
[1743412335049,11.15745,1792.6,1792.2,11.15921]
[1743412335248,10.44921998,1792.7,1792.3,5.57929]
[1743412335453,5.57851,1792.6,1792.3,5.57929]
[1743412335642,5.57851,1792.6,1792.3,5.57928]
[1743412336154,11.1572,1792.6,1792.2,11.15928]
[1743412336363,11.15729,1792.6,1792.2,5.57958]
[1743412336524,5.57886,1792.5,1792.2,5.57958]
[1743412336723,11.1579,1792.5,1792.1,11.70998]
[1743412336948,5.57886,1792.5,1792.2,5.57959]
[1743412337634,7.18137,1792.6,1792.2,11.15919]
[1743412337635,12.76003,1792.6,1792.2,11.15919]
[1743412338051,0.34455776,1792.4,1792.2,11.15919]
[1743412338255,0.34455776,1792.4,1792.3,5.57942]
[1743412339156,0.34455776,1792.4,1792.2,5.57959]
[1743412339640,0.34455776,1792.4,1792.2,11.15922]
[1743412340042,0.34455776,1792.4,1792.2,11.15921]
[1743412340243,0.34455776,1792.3,1792.2,11.70921]
[1743412340943,0.34455776,1792.3,1792.2,6.12973]
[1743412341545,11.50243776,1792.5,1792.1,11.15994]
[1743412341943,5.92346776,1792.5,1792.1,11.15994]
[1743412342140,5.57922,1792.4,1792.1,5.57995]
[1743412342738,11.50234776,1792.5,1792.1,11.15989]
[1743412342938,0.34455776,1792.3,1792.1,11.15989]
[1743412343542,0.34455776,1792.3,1792.1,5.57993]
[1743412343837,5.58019,1792.1,1791.7,5.58125]
[1743412344036,9.81765898,1792.0,1791.6,5.58148]
[1743412344363,5.58068,1791.9,1791.6,5.58144]
[1743412344578,5.58253,1791.4,1791.0,5.58346]
[1743412344750,10.07928998,1791.3,1790.8,5.58391]
[1743412345063,5.5833,1791.1,1790.7,5.5844]
[1743412345363,10.07921998,1791.3,1790.7,11.16835]
[1743412345559,5.58318,1791.1,1790.7,11.16835]
[1743412345763,11.16653,1791.1,1790.7,5.58416]
[1743412345940,5.58318,1791.1,1790.7,5.58416]
[1743412346141,11.16654,1791.1,1790.7,5.58416]
[1743412346560,5.58351,1791.0,1790.6,6.38467]
[1743412346760,5.58318,1791.1,1790.6,6.3846]
[1743412346942,5.58318,1791.1,1790.7,5.58436]
[1743412347963,0.777,1791.7,1791.6,5.5816]
[1743412348262,0.777,1791.9,1791.8,5.58069]
[1743412348448,0.777,1792.1,1791.9,5.5804]
[1743412348770,4.47804998,1792.3,1792.2,5.57973]
[1743412349064,5.57976,1792.2,1791.9,5.58066]
[1743412349243,6.37834,1792.3,1791.9,5.5805]
[1743412349565,5.57973,1792.2,1791.9,5.5805]
[1743412349766,5.57973,1792.2,1791.8,5.58096]
[1743412349946,5.58048,1792.0,1791.6,6.34176]
[1743412350146,5.58048,1792.0,1791.6,5.58156]
[1743412350357,5.58048,1792.0,1791.6,11.16306]
[1743412350536,11.96414383,1792.3,1791.9,5.58058]
[1743412350735,6.38468383,1792.3,1792.0,5.58021]
[1743412350943,0.34296985,1792.3,1792.2,5.57973]
[1743412351142,0.34296985,1792.3,1792.1,5.57995]
[1743412351671,10.05686998,1792.5,1792.1,5.57985]
[1743412351867,5.57992,1792.2,1791.8,5.58087]
[1743412352049,5.57992,1792.2,1791.8,5.58083]
[1743412352246,5.57992,1792.2,1791.8,11.16162]
[1743412352570,0.7989,1792.5,1792.4,5.57911]
[1743412352738,0.7989,1792.5,1792.3,5.57919]
[1743412352739,0.7989,1792.5,1792.3,5.57942]
[1743412353065,5.57924,1792.4,1791.8,0.63846]
[1743412353240,4.47804998,1792.5,1791.9,5.58041]
[1743412353442,3.67914998,1792.3,1791.7,11.71218]
[1743412353750,5.57987,1792.2,1791.8,5.58078]
[1743412353946,9.25860998,1792.3,1791.7,0.605806]
[1743412354149,4.47804998,1792.5,1792.3,5.57914]
[1743412354351,1.246705,1792.5,1792.4,5.57911]
[1743412354546,0.7989,1792.5,1792.4,5.57911]
[1743412354747,0.7989,1792.5,1792.3,5.57914]
[1743412354971,5.57933,1792.4,1792.0,5.58018]
[1743412355148,5.57957,1792.3,1791.9,5.58052]
[1743412355344,5.58022,1792.1,1791.7,11.92823]
[1743412355675,5.58049,1792.0,1791.6,5.58134]
[1743412356174,1.945298,1792.1,1791.9,5.5804]
[1743412356374,0.8293,1792.1,1791.9,5.5804]
[1743412356571,0.8293,1792.1,1791.8,5.58093]
[1743412356873,0.8293,1792.1,1791.8,5.58081]
[1743412357059,5.58037,1792.0,1791.7,5.58126]
[1743412357266,5.5808,1791.9,1791.5,6.33278]
[1743412357466,5.5808,1791.9,1791.5,11.91458]
[1743412357775,5.5808,1791.9,1791.6,5.5816]
[1743412358077,5.58041,1792.0,1791.6,11.16306]
[1743412358242,5.58041,1792.0,1791.7,5.58128]
[1743412358446,5.58041,1792.0,1791.6,11.16295]
[1743412358647,0.8293,1792.1,1791.7,6.13122]
[1743412358886,6.674,1792.2,1791.8,5.58098]
[1743412359070,11.94677,1792.3,1791.9,5.58066]
[1743412359476,5.57975,1792.2,1791.9,5.58066]
[1743412359656,5.58016,1792.1,1791.8,5.58085]
[1743412360782,5.58036,1792.0,1791.7,6.13125]
[1743412361079,11.16036,1792.1,1791.7,11.71231]
[1743412361278,5.58037,1792.0,1791.7,5.58115]
[1743412361579,5.58037,1792.0,1791.7,5.58113]
[1743412361781,5.58016,1792.1,1791.8,5.58097]
[1743412362179,5.57977,1792.2,1791.8,5.58082]
[1743412362350,11.15963,1792.2,1791.9,5.5806]
[1743412362691,11.1598,1792.2,1791.8,5.58085]
[1743412362846,5.58023,1792.1,1791.8,5.58085]
[1743412363048,5.57993,1792.2,1791.8,11.16166]
[1743412363248,11.15993,1792.2,1791.8,11.16169]
[1743412363649,11.15993,1792.2,1791.8,11.1617]
[1743412363993,5.57993,1792.2,1791.9,5.58066]
[1743412364455,5.57993,1792.2,1791.9,5.58053]
[1743412364655,5.57993,1792.2,1791.8,5.58083]
[1743412364656,11.15997,1792.2,1791.8,5.58083]
[1743412364854,5.58007,1792.1,1791.7,5.58123]
[1743412365091,5.58038,1792.0,1791.7,5.58123]
[1743412365296,5.58038,1792.0,1791.7,11.16237]
[1743412365479,5.58038,1792.0,1791.7,5.58114]
[1743412365867,5.58076,1791.9,1791.6,5.58156]
[1743412366272,5.58076,1791.9,1791.3,5.58239]
[1743412366273,14.037624,1791.9,1791.3,5.58235]
[1743412366481,5.58176,1791.6,1791.2,5.58278]
[1743412366671,5.58208,1791.5,1791.1,37.78509]
[1743412366998,11.94019,1791.4,1791.0,11.16678]
[1743412367309,6.35773,1791.4,1791.1,5.58311]
[1743412369766,11.94012,1791.4,1791.1,5.58312]
[1743412369964,11.94012,1791.4,1791.0,11.16668]
[1743412370506,11.94012,1791.4,1791.0,5.58332]
[1743412370660,5.58309,1791.2,1790.8,11.71798]
[1743412370862,5.58309,1791.2,1790.9,5.58373]
[1743412371060,11.16613,1791.2,1790.7,0.7759]
[1743412371362,11.16613,1791.2,1790.8,5.58393]
[1743412371562,5.58304,1791.2,1790.8,11.16791]
[1743412371898,5.58304,1791.2,1790.6,5.58469]
[1743412371899,5.58349,1791.0,1790.6,5.58469]
[1743412372100,5.58363,1791.0,1790.6,11.16902]
[1743412372304,5.58389,1790.9,1790.6,5.58442]
[1743412372743,5.58412,1790.8,1790.5,37.78597]
[1743412372868,5.58389,1790.9,1790.6,5.58471]
[1743412373200,5.58353,1791.0,1790.7,5.58429]
[1743412373365,11.16722,1791.0,1790.6,5.58457]
[1743412373558,5.58353,1791.0,1790.6,11.16914]
[1743412373763,11.16728,1791.0,1790.6,5.58457]